fUSD/lending_fUSD_20251201
["ID","MTS","AMOUNT","RATE_DAILY","PERIOD"]
[395247054,1764567043442,-150.0,0.00015645,2]
[395247055,1764567043452,-212.94335419,0.00015645,2]
[395247056,1764567043461,-500.0,0.00015645,2]
[395247057,1764567043472,-500.0,0.00015645,2]
[395247058,1764567043481,-500.0,0.00015645,2]
[395247059,1764567043491,-588.42389911,0.00015645,2]
[395247060,1764567043500,-500.0,0.00015645,2]
[395247061,1764567043510,-500.0,0.00015645,2]
[395247062,1764567043519,-500.0,0.00015645,2]
[395247063,1764567043532,-500.0,0.00015645,2]
[395247064,1764567043542,-4205.0,0.00015645,2]
[395247065,1764567043551,-150.0,0.00015645,2]
[395247066,1764567043560,-163.26516965,0.00015648,2]
[395247067,1764567043571,-224.86945404,0.00015648,2]
[395247068,1764567043580,-150.0,0.00015648,2]
[395247069,1764567043589,-150.0,0.00015656,2]
[395247070,1764567043599,-150.0,0.00015657,2]
[395247071,1764567043611,-150.0,0.00015662,2]
[395247072,1764567043620,-150.0,0.00015663,2]
[395247073,1764567043630,-163.26516965,0.00015665,2]
[395247074,1764567043640,-224.86945404,0.00015665,2]
[395247075,1764567043649,-2351.0,0.00015666,2]
[395247076,1764567043660,-13970.72633565,0.00015666,2]
[395247077,1764567043669,-150.0,0.00015671,2]
[395247078,1764567043678,-150.0,0.00015675,2]
[395247079,1764567043687,-163.26516965,0.00015682,2]
[395247080,1764567043697,-224.86945404,0.00015682,2]
[395247081,1764567043706,-150.0,0.00015684,2]
[395247082,1764567043715,-150.0,0.00015685,2]
[395247083,1764567043724,-150.0,0.00015687,2]
[395247084,1764567043733,-163.26516965,0.00015699,2]
[395247085,1764567043743,-224.86945404,0.00015699,2]
[395247086,1764567043752,-150.0,0.00015699,2]
[395247087,1764567043761,-150.0,0.00015705,2]
[395247088,1764567043771,-150.0,0.00015707,2]
[395247089,1764567043780,-150.0,0.00015712,2]
[395247090,1764567043789,-150.0,0.00015712,2]
[395247091,1764567043798,-150.0,0.00015712,2]
[395247092,1764567043807,-150.0,0.00015712,2]
[395247093,1764567043816,-163.26516965,0.00015717,2]
[395247094,1764567043825,-224.86945404,0.00015717,2]
[395247095,1764567043835,-500.0,0.00015722,2]
[395247096,1764567043844,-150.0,0.00015726,2]
[395247097,1764567043854,-150.0,0.00015729,2]
[395247098,1764567043863,-150.0,0.00015731,2]
[395247099,1764567043872,-163.26516965,0.00015734,2]
[395247100,1764567043881,-224.86945404,0.00015734,2]
[395247101,1764567043891,-150.0,0.00015735,2]
[395247102,1764567043899,-150.0,0.00015737,2]
[395247103,1764567043909,-150.0,0.00015741,2]
[395247104,1764567043918,-150.0,0.00015741,2]
[395247105,1764567043928,-163.26516965,0.00015751,2]
[395247106,1764567043937,-224.86945404,0.00015751,2]
[395247107,1764567043947,-150.0,0.00015751,2]
[395247108,1764567043957,-150.0,0.00015751,2]
[395247109,1764567043966,-150.0,0.00015762,2]
[395247110,1764567044062,-150.0,0.00015764,2]
[395247111,1764567044071,-163.26516965,0.00015768,2]
[395247112,1764567044080,-224.86945404,0.00015768,2]
[395247113,1764567044089,-150.0,0.00015769,2]
[395247114,1764567044099,-150.0,0.00015773,2]
[395247115,1764567044108,-150.0,0.00015773,2]
[395247116,1764567044117,-150.0,0.00015781,2]
[395247117,1764567044126,-1703.0,0.00015782,2]
[395247118,1764567044136,-1033.0,0.00015782,2]
[395247119,1764567044146,-150.0,0.00015782,2]
[395247120,1764567044155,-500.0,0.00015782,2]
[395247121,1764567044165,-500.0,0.00015782,2]
[395247122,1764567044175,-550.88958633,0.00015782,2]
[395247123,1764567044184,-500.0,0.00015782,2]
[395247124,1764567044193,-500.0,0.00015782,2]
[395247125,1764567044204,-500.0,0.00015782,2]
[395247126,1764567044213,-500.0,0.00015782,2]
[395247127,1764567044222,-4205.0,0.00015782,2]
[395247128,1764567044232,-163.26516965,0.00015785,2]
[395247129,1764567044241,-224.86945404,0.00015785,2]
[395247130,1764567044251,-150.0,0.00015787,2]
[395247131,1764567044260,-150.0,0.00015794,2]
[395247132,1764567044269,-150.0,0.00015795,2]
[395247133,1764567044278,-150.0,0.00015797,2]
[395247134,1764567044287,-150.0,0.00015797,2]
[395247135,1764567044296,-163.26516965,0.00015802,2]
[395247136,1764567044305,-224.86945404,0.00015802,2]
[395247137,1764567044314,-150.0,0.00015802,2]
[395247138,1764567044323,-150.0,0.00015805,2]
[395247139,1764567044332,-2223.21323629,0.00015807,2]
[395247140,1764567044341,-150.0,0.00015812,2]
[395247141,1764567044350,-1707.00447917,0.00015814,2]
[395247142,1764567044359,-150.0,0.00015817,2]
[395247143,1764567044368,-163.26516965,0.0001582,2]
[395247144,1764567044378,-224.86945404,0.0001582,2]
[395247145,1764567044388,-150.0,0.00015824,2]
[395247146,1764567044398,-150.0,0.00015826,2]
[395247147,1764567044407,-150.0,0.00015836,2]
[395247148,1764567044416,-163.26516965,0.00015837,2]
[395247149,1764567044425,-224.86945404,0.00015837,2]
[395247150,1764567044434,-150.0,0.00015837,2]
[395247151,1764567044443,-150.0,0.00015839,2]
[395247152,1764567044452,-163.26516965,0.00015854,2]
[395247153,1764567044461,-150.0,0.00015854,2]
[395247154,1764567044473,-150.0,0.00015854,2]
[395247155,1764567044482,-224.86945404,0.00015854,2]
[395247156,1764567044492,-150.0,0.00015854,2]
[395247157,1764567044501,-150.0,0.00015854,2]
[395247158,1764567044511,-150.0,0.00015854,2]
[395247159,1764567044520,-150.0,0.00015861,2]
[395247160,1764567044530,-150.0,0.00015862,2]
[395247161,1764567044543,-163.26516965,0.00015871,2]
[395247162,1764567044552,-224.86945404,0.00015871,2]
[395247163,1764567044561,-150.0,0.00015878,2]
[395247164,1764567044571,-150.0,0.00015882,2]
[395247165,1764567044582,-150.0,0.00015883,2]
[395247166,1764567044591,-150.0,0.00015884,2]
[395247167,1764567044602,-150.0,0.00015887,2]
[395247168,1764567044614,-163.26516965,0.00015888,2]
[395247169,1764567044624,-224.86945404,0.00015888,2]
[395247170,1764567044633,-1334.08,0.0001589,2]
[395247171,1764567044642,-729.23,0.0001589,10]
[395247172,1764567044651,-150.0,0.0001589,2]
[395247173,1764567044660,-600.0,0.0001589,2]
[395247174,1764567044670,-1033.32870599,0.000159,2]
[395247175,1764567044680,-1172.33649556,0.000159,2]
[395247176,1764567044689,-1172.33649554,0.000159,2]
[395247177,1764567044698,-1172.33649554,0.000159,2]
[395247178,1764567044708,-1172.33649554,0.000159,2]
[395247179,1764567044719,-1172.33649554,0.000159,2]
[395247180,1764567044728,-1172.33649554,0.000159,2]
[395247181,1764567044737,-163.26516965,0.00015905,2]
[395247182,1764567044746,-224.86945404,0.00015905,2]
[395247183,1764567044755,-150.0,0.00015905,2]
[395247184,1764567044764,-150.0,0.00015905,2]
[395247185,1764567044773,-150.0,0.00015911,2]
[395247186,1764567044783,-150.0,0.00015912,2]
[395247187,1764567044792,-150.0,0.00015913,2]
[395247188,1764567044801,-1703.0,0.00015919,2]
[395247189,1764567044810,-1033.0,0.00015919,2]
[395247190,1764567044819,-150.0,0.00015919,2]
[395247191,1764567044829,-500.0,0.00015919,2]
[395247192,1764567044838,-500.0,0.00015919,2]
[395247193,1764567044847,-500.0,0.00015919,2]
[395247194,1764567044856,-500.0,0.00015919,2]
[395247195,1764567044865,-500.0,0.00015919,2]
[395247196,1764567044874,-500.0,0.00015919,2]
[395247197,1764567044883,-4205.0,0.00015919,2]
[395247198,1764567044894,-163.26516965,0.00015923,2]
[395247199,1764567044903,-224.86945404,0.00015923,2]
[395247200,1764567044913,-150.0,0.00015927,2]
[395247201,1764567044923,-207.4,0.0001593,2]
[395247202,1764567044932,-200.0,0.00015931,2]
[395247203,1764567044941,-500.0,0.00015931,2]
[395247204,1764567044951,-200.0,0.00015931,2]
[395247205,1764567044960,-150.0,0.00015937,2]
[395247206,1764567044969,-150.0,0.00015939,2]
[395247207,1764567044980,-163.26516965,0.0001594,2]
[395247208,1764567044989,-224.86945404,0.0001594,2]
[395247209,1764567044999,-150.0,0.00015943,2]
[395247210,1764567045008,-150.0,0.00015945,2]
[395247211,1764567045018,-150.0,0.00015949,2]
[395247212,1764567045027,-150.0,0.00015952,2]
[395247213,1764567045037,-163.26516965,0.00015957,2]
[395247214,1764567045047,-224.86945404,0.00015957,2]
[395247215,1764567045056,-150.0,0.00015957,2]
[395247216,1764567045065,-150.0,0.00015962,2]
[395247217,1764567045074,-150.0,0.00015967,2]
[395247218,1764567045083,-150.0,0.00015967,2]
[395247219,1764567045093,-150.0,0.00015967,2]
[395247220,1764567045102,-150.0,0.00015972,2]
[395247221,1764567045111,-150.0,0.00015973,2]
[395247222,1764567045120,-163.26516965,0.00015974,2]
[395247223,1764567045129,-224.86945404,0.00015974,2]
[395247224,1764567045138,-150.0,0.00015987,2]
[395247225,1764567045148,-163.26516965,0.00015991,2]
[395247226,1764567045157,-224.86945404,0.00015991,2]
[395247227,1764567045166,-150.0,0.00015994,2]
[395247228,1764567045176,-150.0,0.00015995,2]
[395247229,1764567045185,-150.0,0.00016,2]
[395247230,1764567045201,-552.29203276,0.00016,2]
[395247231,1764567045211,-23669.11750587,0.00016,2]
[395247232,1764567045221,-217992.40892067,0.00016,2]
[395247233,1764567045231,-346159.54810529,0.00016,4]
[395247234,1764567045240,-2000.0,0.00016,2]
[395247235,1764567045255,-150.0,0.00016003,2]
[395247236,1764567045266,-163.26516965,0.00016008,2]
[395247237,1764567045275,-224.86945404,0.00016008,2]
[395247238,1764567045285,-150.0,0.00016008,2]
[395247239,1764567045294,-150.0,0.00016012,2]
[395247240,1764567045304,-150.0,0.00016016,2]
[395247241,1764567045313,-150.0,0.00016016,2]
[395247242,1764567045322,-1000.0,0.00016016,2]
[395247244,1764567045331,-40773.61710728,0.00016022,2]
[395247246,1764567045340,-150.0,0.00016024,2]
[395247247,1764567045350,-163.26516965,0.00016025,2]
[395247248,1764567045359,-224.86945404,0.00016025,2]
[395247249,1764567045368,-150.0,0.00016026,2]
[395247250,1764567045377,-150.0,0.00016033,2]
[395247251,1764567045387,-150.0,0.00016037,2]
[395247252,1764567045396,-150.0,0.00016038,2]
[395247253,1764567045406,-163.26516965,0.00016043,2]
[395247254,1764567045415,-224.86945404,0.00016043,2]
[395247255,1764567045424,-150.0,0.00016052,2]
[395247256,1764567045434,-150.0,0.00016055,2]
[395247257,1764567045443,-1703.0,0.00016056,2]
[395247258,1764567045454,-1033.0,0.00016056,2]
[395247259,1764567045463,-180.65552809,0.00016056,2]
[395247260,1764567045473,-500.0,0.00016056,2]
[395247261,1764567045482,-153.47951242,0.00016056,2]
[395247262,1764567045492,-500.0,0.00016056,2]
[395247263,1764567045502,-500.0,0.00016056,2]
[395247264,1764567045513,-500.0,0.00016056,2]
[395247265,1764567045522,-500.0,0.00016056,2]
[395247266,1764567045534,-4205.0,0.00016056,2]
[395247267,1764567045548,-163.26516965,0.0001606,2]
[395247268,1764567045558,-224.86945404,0.0001606,2]
[395247269,1764567045567,-150.0,0.0001606,2]
[395247270,1764567045579,-150.0,0.0001606,2]
[395247271,1764567045588,-150.0,0.00016062,2]
[395247272,1764567045599,-150.0,0.00016062,2]
[395247273,1764567045611,-163.26516965,0.00016077,2]
[395247274,1764567045622,-224.86945404,0.00016077,2]
[395247275,1764567045632,-13970.72633565,0.00016078,2]
[395247276,1764567045641,-150.0,0.0001608,2]
[395247277,1764567045651,-150.0,0.0001608,2]
[395247278,1764567045660,-150.0,0.00016082,2]
[395247279,1764567045669,-150.0,0.00016087,2]
[395247280,1764567045679,-150.0,0.00016092,2]
[395247281,1764567045688,-163.26516965,0.00016094,2]
[395247282,1764567045699,-224.86945404,0.00016094,2]
[395247283,1764567045708,-150.0,0.000161,2]
[395247284,1764567045720,-150.0,0.00016104,2]
[395247285,1764567045729,-151.0,0.00016107,2]
[395247286,1764567045740,-150.0,0.00016109,2]
[395247287,1764567045750,-150.0,0.0001611,2]
[395247288,1764567045760,-6164.0,0.0001611,2]
[395247289,1764567045769,-163.26516965,0.00016111,2]
[395247290,1764567045780,-224.86945404,0.00016111,2]
[395247291,1764567045789,-150.0,0.00016111,2]
[395247292,1764567045798,-150.0,0.00016112,2]
[395247293,1764567045808,-9999.99,0.00016116,2]
[395247294,1764567045818,-150.0,0.00016122,2]
[395247295,1764567045827,-150.0,0.00016126,2]
[395247296,1764567045837,-163.26516965,0.00016128,2]
[395247297,1764567045854,-224.86945404,0.00016128,2]
[395247298,1764567045865,-150.0,0.00016137,2]
[395247299,1764567045875,-150.0,0.00016137,2]
[395247300,1764567045885,-150.0,0.00016137,2]
[395247301,1764567045895,-150.0,0.00016137,2]
[395247302,1764567045904,-150.0,0.00016137,2]
[395247303,1764567045913,-157.6153451,0.0001614,2]
[395247304,1764567045923,-163.26516965,0.00016146,2]
[395247305,1764567045932,-224.86945404,0.00016146,2]
[395247306,1764567045942,-2555.15,0.00016147,2]
[395247307,1764567045952,-5156.82,0.00016147,2]
[395247308,1764567045962,-500.0,0.00016148,2]
[395247309,1764567045971,-500.0,0.00016148,2]
[395247310,1764567045981,-500.0,0.00016148,2]
[395247311,1764567045990,-2555.15,0.00016148,2]
[395247312,1764567046000,-5156.82,0.00016148,2]
[395247313,1764567046010,-500.0,0.00016148,2]
[395247314,1764567046020,-150.0,0.00016148,2]
[395247315,1764567046030,-151.0,0.00016149,2]
[395247316,1764567046040,-566.523054,0.00016149,2]
[395247317,1764567046050,-566.523054,0.00016149,2]
[395247318,1764567046060,-151.0,0.00016149,2]
[395247319,1764567046070,-566.523054,0.00016149,2]
[395247320,1764567046080,-566.523054,0.00016149,2]
[395247321,1764567046090,-200.668917,0.00016149,2]
[395247322,1764567046099,-151.0,0.00016149,2]
[395247323,1764567046108,-297.205808,0.00016149,2]
[395247324,1764567046118,-200.668917,0.00016149,2]
[395247325,1764567046128,-200.668917,0.00016149,2]
[395247326,1764567046137,-200.668917,0.00016149,2]
[395247327,1764567046147,-151.0,0.00016149,2]
[395247328,1764567046156,-151.0,0.00016149,2]
[395247329,1764567046165,-3000.0,0.00016149,2]
[395247330,1764567046175,-250.0,0.00016149,2]
[395247331,1764567046185,-10000.0,0.00016149,2]
[395247332,1764567046196,-151.0,0.00016149,2]
[395247333,1764567046205,-250.0,0.00016149,2]
[395247334,1764567046215,-10000.0,0.00016149,2]
[395247335,1764567046225,-3000.0,0.00016149,2]
[395247336,1764567046235,-250.0,0.00016149,2]
[395247337,1764567046244,-578.20924308,0.00016149,2]
[395247338,1764567046255,-10000.0,0.00016149,2]
[395247339,1764567046266,-3000.0,0.00016149,2]
[395247340,1764567046275,-250.0,0.00016149,2]
[395247341,1764567046284,-10000.0,0.00016149,2]
[395247342,1764567046294,-3000.0,0.00016149,2]
[395247343,1764567046303,-194.72792766,0.00016149,2]
[395247344,1764567046313,-250.0,0.00016149,2]
[395247345,1764567046323,-10000.0,0.00016149,2]
[395247346,1764567046332,-3000.0,0.00016149,2]
[395247347,1764567046341,-533.88981491,0.00016149,2]
[395247348,1764567046351,-354.84418245,0.00016149,2]
[395247349,1764567046361,-10000.0,0.00016149,2]
[395247350,1764567046370,-3000.0,0.00016149,2]
[395247351,1764567046380,-10000.0,0.00016149,2]
[395247352,1764567046389,-3000.0,0.00016149,2]
[395247353,1764567046399,-10000.0,0.00016149,2]
[395247354,1764567046409,-3000.0,0.00016149,2]
[395247355,1764567046418,-10000.0,0.00016149,2]
[395247356,1764567046427,-3000.0,0.00016149,2]
[395247357,1764567046437,-10000.0,0.00016149,2]
[395247358,1764567046446,-3000.0,0.00016149,2]
[395247359,1764567046455,-10000.0,0.00016149,2]
[395247360,1764567046464,-3000.0,0.00016149,2]
[395247361,1764567046473,-10000.0,0.00016149,2]
[395247362,1764567046483,-3000.0,0.00016149,2]
[395247363,1764567046492,-10000.0,0.00016149,2]
[395247364,1764567046501,-3000.0,0.00016149,2]
[395247365,1764567046511,-160.0,0.00016149,2]
[395247366,1764567046520,-151.0,0.00016149,2]
[395247367,1764567046531,-358.32829599,0.00016149,2]
[395247368,1764567046543,-194.72792766,0.00016149,2]
[395247369,1764567046552,-234.67943684,0.00016149,2]
[395247370,1764567046562,-1328.07662834,0.00016149,2]
[395247371,1764567046571,-2500.0,0.00016149,2]
[395247372,1764567046580,-2500.0,0.00016149,2]
[395247373,1764567046590,-1000.0,0.00016149,2]
[395247374,1764567046599,-2500.0,0.00016149,2]
[395247375,1764567046610,-1000.0,0.00016149,2]
[395247376,1764567046620,-2500.0,0.00016149,2]
[395247377,1764567046629,-8000.0,0.00016149,2]
[395247378,1764567046638,-151.0,0.00016149,2]
[395247379,1764567046648,-1000.0,0.00016149,2]
[395247380,1764567046657,-1500.0,0.00016149,2]
[395247381,1764567046666,-2500.0,0.00016149,2]
[395247382,1764567046675,-8000.0,0.00016149,2]
[395247383,1764567046684,-1000.0,0.00016149,2]
[395247384,1764567046693,-1500.0,0.00016149,2]
[395247385,1764567046702,-2500.0,0.00016149,2]
[395247386,1764567046711,-8000.0,0.00016149,2]
[395247387,1764567046721,-1000.0,0.00016149,2]
[395247388,1764567046732,-300.0,0.00016149,2]
[395247389,1764567046741,-1500.0,0.00016149,2]
[395247390,1764567046751,-8000.0,0.00016149,2]
[395247391,1764567046760,-2500.0,0.00016149,2]
[395247392,1764567046770,-1000.0,0.00016149,2]
[395247393,1764567046779,-1500.0,0.00016149,2]
[395247394,1764567046788,-8000.0,0.00016149,2]
[395247395,1764567046798,-2500.0,0.00016149,2]
[395247396,1764567046809,-1000.0,0.00016149,2]
[395247397,1764567046818,-1500.0,0.00016149,2]
[395247398,1764567046827,-8000.0,0.00016149,2]
[395247399,1764567046836,-2500.0,0.00016149,2]
[395247400,1764567046845,-1000.0,0.00016149,2]
[395247401,1764567046854,-1500.0,0.00016149,2]
[395247402,1764567046864,-8000.0,0.00016149,2]
[395247403,1764567046872,-2500.0,0.00016149,2]
[395247404,1764567046882,-1000.0,0.00016149,2]
[395247405,1764567046891,-1500.0,0.00016149,2]
[395247406,1764567046901,-8000.0,0.00016149,2]
[395247407,1764567046911,-2500.0,0.00016149,2]
[395247408,1764567046920,-1000.0,0.00016149,2]
[395247409,1764567046929,-1609.53388498,0.00016149,2]
[395247410,1764567046938,-1500.0,0.00016149,2]
[395247411,1764567046948,-8000.0,0.00016149,2]
[395247412,1764567046957,-2500.0,0.00016149,2]
[395247413,1764567046967,-1000.0,0.00016149,2]
[395247414,1764567046976,-1500.0,0.00016149,2]
[395247415,1764567046985,-2500.0,0.00016149,2]
[395247416,1764567046995,-8000.0,0.00016149,2]
[395247417,1764567047004,-1000.0,0.00016149,2]
[395247418,1764567047013,-1500.0,0.00016149,2]
[395247419,1764567047022,-6411.59586191,0.00016149,2]
[395247420,1764567047031,-1000.0,0.00016149,2]
[395247421,1764567047040,-559.7798745,0.00016149,2]
[395247422,1764567047049,-1000.0,0.00016149,2]
[395247423,1764567047058,-1000.0,0.00016149,2]
[395247424,1764567047068,-1000.0,0.00016149,2]
[395247425,1764567047077,-1000.0,0.00016149,2]
[395247426,1764567047086,-1000.0,0.00016149,2]
[395247427,1764567047095,-1000.0,0.00016149,2]
[395247428,1764567047104,-762.94247186,0.00016149,2]
[395247429,1764567047114,-500.0,0.00016149,2]
[395247430,1764567047123,-500.0,0.00016149,2]
[395247431,1764567047132,-500.0,0.00016149,2]
[395247432,1764567047141,-500.0,0.00016149,2]
[395247433,1764567047151,-1000.0,0.00016149,2]
[395247434,1764567047160,-500.0,0.00016149,2]
[395247435,1764567047170,-500.0,0.00016149,2]
[395247436,1764567047179,-1000.0,0.00016149,2]
[395247437,1764567047188,-620.0,0.00016149,2]
[395247438,1764567047197,-500.0,0.00016149,2]
[395247439,1764567047207,-500.0,0.00016149,2]
[395247440,1764567047215,-1000.0,0.00016149,2]
[395247441,1764567047225,-500.0,0.00016149,2]
[395247442,1764567047235,-500.0,0.00016149,2]
[395247443,1764567047245,-1000.0,0.00016149,2]
[395247444,1764567047255,-500.0,0.00016149,2]
[395247445,1764567047265,-1000.0,0.00016149,2]
[395247446,1764567047274,-500.0,0.00016149,2]
[395247447,1764567047285,-1000.0,0.00016149,2]
[395247448,1764567047296,-500.0,0.00016149,2]
[395247449,1764567047305,-1000.0,0.00016149,2]
[395247450,1764567047314,-500.0,0.00016149,2]
[395247451,1764567047322,-1000.0,0.00016149,2]
[395247452,1764567047331,-500.0,0.00016149,2]
[395247453,1764567047341,-1000.0,0.00016149,2]
[395247454,1764567047350,-500.0,0.00016149,2]
[395247455,1764567047361,-1000.0,0.00016149,2]
[395247456,1764567047370,-500.0,0.00016149,2]
[395247457,1764567047381,-1000.0,0.00016149,2]
[395247458,1764567047390,-500.0,0.00016149,2]
[395247459,1764567047399,-1000.0,0.00016149,2]
[395247460,1764567047409,-1000.0,0.00016149,2]
[395247461,1764567047418,-257.91778498,0.00016149,2]
[395247462,1764567047427,-226.43577512,0.0001615,2]
[395247463,1764567047436,-2092.314224,0.0001615,2]
[395247464,1764567047445,-150.0,0.00016152,2]
[395247465,1764567047454,-150.0,0.00016162,2]
[395247466,1764567047463,-163.26516965,0.00016163,2]
[395247467,1764567047473,-224.86945404,0.00016163,2]
[395247468,1764567047482,-150.0,0.00016163,2]
[395247469,1764567047491,-1334.08,0.00016164,2]
[395247470,1764567047500,-729.23,0.00016164,11]
[395247471,1764567047509,-150.0,0.00016164,2]
[395247472,1764567047518,-151.0,0.00016165,2]
[395247473,1764567047529,-150.0,0.00016165,2]
[395247474,1764567047541,-150.0,0.0001617,2]
[395247475,1764567047550,-150.0,0.00016174,2]
[395247476,1764567047559,-163.26516965,0.0001618,2]
[395247477,1764567047568,-224.86945404,0.0001618,2]
[395247478,1764567047578,-150.0,0.00016182,2]
[395247479,1764567047587,-150.0,0.00016187,2]
[395247480,1764567047598,-150.0,0.00016192,2]
[395247481,1764567047609,-1703.0,0.00016193,2]
[395247482,1764567047619,-1033.0,0.00016193,2]
[395247483,1764567047628,-500.0,0.00016193,2]
[395247484,1764567047637,-500.0,0.00016193,2]
[395247485,1764567047647,-500.0,0.00016193,2]
[395247486,1764567047656,-500.0,0.00016193,2]
[395247487,1764567047664,-500.0,0.00016193,2]
[395247488,1764567047674,-4205.0,0.00016193,2]
[395247489,1764567047683,-150.0,0.00016194,2]
[395247490,1764567047692,-150.0,0.00016194,2]
[395247491,1764567047701,-163.26516965,0.00016197,2]
[395247492,1764567047711,-224.86945404,0.00016197,2]
[395247493,1764567047720,-5000.00951446,0.000162,5]
[395247494,1764567047730,-1000.0,0.000162,2]
[395247495,1764567047738,-150.0,0.00016211,2]
[395247496,1764567047747,-150.0,0.00016212,2]
[395247497,1764567047756,-163.26516965,0.00016214,2]
[395247498,1764567047766,-224.86945404,0.00016214,2]
[395247499,1764567047776,-150.0,0.00016214,2]
[395247500,1764567047786,-150.0,0.00016214,2]
[395247501,1764567047796,-150.0,0.00016219,2]
[395247502,1764567047807,-150.0,0.00016222,2]
[395247503,1764567047816,-163.26516965,0.00016231,2]
[395247504,1764567047825,-224.86945404,0.00016231,2]
[395247505,1764567047834,-150.0,0.00016236,2]
[395247506,1764567047844,-150.0,0.00016237,2]
[395247507,1764567047853,-150.0,0.00016241,2]
[395247508,1764567047862,-150.0,0.00016248,2]
[395247509,1764567047871,-163.26516965,0.00016249,2]
[395247510,1764567047882,-224.86945404,0.00016249,2]
[395247511,1764567047892,-150.0,0.0001625,2]
[395247512,1764567047903,-150.0,0.00016258,2]
[395247513,1764567047911,-150.0,0.00016258,2]
[395247514,1764567047921,-150.0,0.00016262,2]
[395247515,1764567047933,-150.0,0.00016266,2]
[395247516,1764567047943,-163.26516965,0.00016266,2]
[395247517,1764567047954,-224.86945404,0.00016266,2]
[395247518,1764567047963,-150.0,0.00016271,2]
[395247519,1764567047973,-150.0,0.00016274,2]
[395247520,1764567047982,-150.0,0.00016279,2]
[395247521,1764567047993,-150.0,0.0001628,2]
[395247522,1764567048003,-163.26516965,0.00016283,2]
[395247523,1764567048013,-224.86945404,0.00016283,2]
[395247524,1764567048025,-150.0,0.00016287,2]
[395247525,1764567048034,-163.26516965,0.000163,2]
[395247526,1764567048044,-224.86945404,0.000163,2]
[395247527,1764567048054,-150.0,0.00016301,2]
[395247528,1764567048063,-150.0,0.00016302,2]
[395247529,1764567048073,-150.0,0.00016307,2]
[395247530,1764567048083,-150.0,0.00016307,2]
[395247531,1764567048093,-150.0,0.00016307,2]
[395247532,1764567048102,-150.0,0.00016312,2]
[395247533,1764567048112,-163.26516965,0.00016317,2]
[395247534,1764567048123,-224.86945404,0.00016317,2]
[395247535,1764567048132,-150.0,0.00016317,2]
[395247536,1764567048142,-150.0,0.00016322,2]
[395247537,1764567048293,-150.0,0.00016324,2]
[395247538,1764567048314,-150.0,0.00016329,2]
[395247539,1764567048323,-1703.0,0.0001633,2]
[395247540,1764567048334,-1033.0,0.0001633,2]
[395247541,1764567048343,-500.0,0.0001633,2]
[395247542,1764567048353,-500.0,0.0001633,2]
[395247543,1764567048363,-500.0,0.0001633,2]
[395247544,1764567048374,-500.0,0.0001633,2]
[395247545,1764567048383,-500.0,0.0001633,2]
[395247546,1764567048392,-4205.0,0.0001633,2]
[395247547,1764567048402,-150.0,0.00016331,2]
[395247548,1764567048413,-163.26516965,0.00016334,2]
[395247549,1764567048423,-224.86945404,0.00016334,2]
[395247550,1764567048434,-150.0,0.00016335,2]
[395247551,1764567048445,-150.0,0.00016337,2]
[395247552,1764567048454,-200.0,0.0001634,2]
[395247553,1764567048463,-150.0,0.00016347,2]
[395247554,1764567048472,-163.26516965,0.00016351,2]
[395247555,1764567048482,-224.86945404,0.00016351,2]